[Event "EICC 2025"]
[Site "Eforie-Nord"]
[Date "2025.03.15"]
[Round "1.43"]
[White "Aslanov, Umid"]
[Black "Lupulescu, Constantin"]
[Result "1/2-1/2"]
[Annotator "TA"]
[ECO "B89"]
[WhiteElo "2274"]
[BlackElo "2596"]
[PlyCount "101"]
[EventDate "2025.03.14"]
[EventType "swiss"]
[EventCountry "ROU"]
[SourceTitle "playchess.com"]
[Source "ChessBase"]
[SourceQuality "1"]
[TimeControl "40/5400+30:1800+30"]

{[%evp 14,101,34,17,29,22,24,26,24,26,24,0,0,0,0,0,0,0,17,30,77,-11,69,29,38,26,39,42,43,52,44,51,46,29,46,18,18,20,27,0,0,0,39,38,42,31,77,85,108,102,135,108,127,112,160,161,162,150,146,159,188,31,35,38,32,26,43,47,56,20,22,25,26,15,22,15,27,21,23,22,27,20,47,12,28,0,11,12,12,10]} 1. e4 {[%emt 0:00:03]} c5 {[%emt 0:00:04]} 2. Nf3 {[%emt 0:00:05]} Nc6 {[%emt 0:00:04]} 3. d4 {[%emt 0:00:06]} cxd4 {[%emt 0:00:05]} 4. Nxd4 {[%emt 0:00:04]} Nf6 {[%emt 0:00:06]} 5. Nc3 {[%emt 0:00:03]} d6 {[%emt 0:00:06]} 6. Bc4 {[%emt 0:00:43]} e6 {[%emt 0:00:18]} 7. Be3 {[%emt 0:00:18]} Bd7 {[%emt 0:00:12]} 8. Qe2 $1 {[%emt 0:01:08] The main line 8.Qe2 scores better than 8.Bb3.} Rc8 {[%emt 0:00:27] B89: Sicilian: Velimirovic Attack.} 9. Bb3 {[%emt 0:01:58]} Na5 {[%emt 0:01:29]} 10. O-O {[%emt 0:05:01]} Be7 {[%emt 0:00:44] White has an edge.} 11. f4 {[%emt 0:03:33]} h5 $146 {[%emt 0:01:11]} (11... O-O 12. Kh1 a6 13. Rad1 Qc7 14. f5 Nxb3 15. axb3 b5 16. fxe6 fxe6 17. e5 dxe5 {0-1 Guo,J (2112)-Dragnev,V (2565) Titled Tuesday intern op 14th Feb Early blitz 2023 (2)}) 12. h3 {[%emt 0:06:29] Wards off Ng4} Rxc3 $1 {[%emt 0:03:05]} 13. bxc3 {[%emt 0:00:35] [#]} Nxe4 {[%emt 0:00:05]} 14. Qf3 {[%emt 0:02:18] Prevents Ng3.} Nf6 {[%emt 0:05:24]} ({Much worse is} 14... Nxc3 $6 15. f5 O-O (15... e5 16. Ne6 $16) 16. fxe6 fxe6 17. Qxh5 Nxb3 18. Rxf8+ (18. cxb3 Bf6 $11) (18. axb3 a6 $16) (18. Nxb3 Nd5 $14) 18... Qxf8 19. axb3 $16) (14... d5 $6 15. c4 $16) 15. Rad1 {[%emt 0:09:15]} h4 {[%emt 0:09:53]} 16. Bf2 {[%emt 0:01:47]} d5 {[%emt 0:18:45]} (16... a6 $11) 17. Qd3 {[%emt 0:22:21] White is more active.} (17. Rfe1 $16) 17... Ne4 {[%emt 0:20:01]} ({Better is} 17... Qb8 $11) 18. c4 {[%emt 0:05:44]} (18. f5 $5) 18... Nxf2 {[%emt 0:00:52]} 19. Rxf2 {[%emt 0:00:49]} dxc4 {[%emt 0:03:14]} 20. Bxc4 {[%emt 0:00:19]} Nxc4 {[%emt 0:03:03]} 21. Qxc4 {[%emt 0:01:38]} Qb6 {[%emt 0:00:55]} 22. Kh1 {[%emt 0:02:50]} O-O {[%emt 0:00:47]} 23. Qb3 {[%emt 0:05:15]} Qc7 {[%emt 0:13:50]} 24. Nf3 {[%emt 0:07:31]} Rc8 {[%emt 0:01:30]} 25. Ne5 {[%emt 0:03:05]} Be8 {[%emt 0:00:57]} 26. Rfd2 {[%emt 0:01:33]} b5 {[%emt 0:04:34]} 27. Qf3 {[%emt 0:03:33]} Bf6 {[%emt 0:02:54][%cal Oa7a5]} 28. Nd7 $36 {[%emt 0:02:49][%mdl 2048] White has good play.} Bc3 {[%emt 0:03:03]} 29. Rd3 {[%emt 0:00:18]} Bb2 {[%emt 0:04:20]} (29... b4 $14) 30. f5 $16 {[%emt 0:00:42]} exf5 {[%emt 0:00:26]} 31. Qxf5 {[%emt 0:00:15] White attacks} Qxc2 {[%emt 0:00:17]} 32. Qxb5 {[%emt 0:01:02]} Qe2 {[%emt 0:01:39]} 33. Qg5 {[%emt 0:02:14]} Rc2 {[%emt 0:00:58]} (33... f6 $142 34. Qxh4 Rc1 35. Rxc1 Qxd3) 34. R3d2 {[%emt 0:03:05] Chess con chili.} (34. Qxh4 $2 Qxg2#) 34... Rxd2 {[%emt 0:00:07]} 35. Qxd2 {[%emt 0:00:09]} Qxd2 {[%emt 0:01:22]} 36. Rxd2 $18 {[%emt 0:00:01][%mdl 4096] Endgame KRN-KB} Ba1 {[%emt 0:00:30] [#]} 37. Kg1 $2 {[%emt 0:01:03]} (37. Rd1 $1 $18) 37... f6 $14 {[%emt 0:00:41]} 38. Kf2 {[%emt 0:00:33]} Kf7 {[%emt 0:00:05]} 39. Ke3 {[%emt 0:02:09]} Ke7 {[%emt 0:00:36]} 40. Nc5 {[%emt 0:00:32]} Be5 {[%emt 0:00:57]} 41. Kd3 {[%emt 0:32:24]} Bc6 {[%emt 0:07:49]} 42. Kc4 {[%emt 0:00:00]} f5 {[%emt 0:04:23]} 43. Nd3 {[%emt 0:00:00]} Bg3 {[%emt 0:00:33]} 44. Nb4 {[%emt 0:00:00]} Be4 {[%emt 0:02:50]} 45. a4 {[%emt 0:00:00]} a5 {[%emt 0:04:13]} 46. Nd5+ {[%emt 0:00:00]} Ke6 {[%emt 0:03:41]} 47. Nc3 {[%emt 0:00:00]} Ba8 {[%emt 0:01:35]} 48. Re2+ {[%emt 0:00:00]} Be5 {[%emt 0:00:33]} 49. Nb5 {[%emt 0:00:00] Threatens to win with Nc7+.} Kf6 {[%emt 0:00:09]} 50. Kc5 {[%emt 0:00:00]} g5 {[%emt 0:03:12]} 51. Nd4 {[%emt 0:00:00] Weighted Error Value: White=0.16 (very precise) /Black=0.13 (very precise)   Mistake:       	White=2     	Black=4      Inaccurate:     	White=5     	Black=2      OK:         	White=19    	Black=20     Best:        	White=1     	Black=1      Strong:       	---       	Black=1} 1/2-1/2

[Event "EICC 2025"]
[Site "Eforie-Nord"]
[Date "2025.03.15"]
[Round "1.44"]
[White "Gumularz, Szymon"]
[Black "Gilea, Lucian"]
[Result "1-0"]
[Annotator "TA"]
[ECO "C64"]
[WhiteElo "2591"]
[BlackElo "2273"]
[PlyCount "71"]
[EventDate "2025.03.14"]
[EventType "swiss"]
[EventCountry "ROU"]
[SourceTitle "playchess.com"]
[Source "ChessBase"]
[SourceQuality "1"]
[TimeControl "40/5400+30:1800+30"]

{[%evp 9,71,70,65,62,113,70,97,91,96,86,87,46,64,35,41,16,38,30,50,0,15,3,60,51,45,-21,-29,-12,-22,-17,0,-31,-16,-20,53,53,86,63,74,63,174,182,160,175,329,314,498,473,459,199,1217,1177,1262,1270,1269,1271,1219,1209,3094,5456,5389,4439,29986,29987]} 1. e4 {[%emt 0:00:05]} e5 {[%emt 0:00:06]} 2. Nf3 {[%emt 0:00:08]} Nc6 {[%emt 0:00:06]} 3. Bb5 {[%emt 0:00:07]} Bc5 {[%emt 0:00:27]} 4. c3 {[%emt 0:00:42]} Qe7 {[%emt 0:00:36]} 5. O-O {[%emt 0:02:25]} a6 {[%emt 0:01:53]} 6. Ba4 {[%emt 0:00:05] C64: Ruy Lopez: Classical Defence (3...Bc5) except 4 0-0 Nf6.} b5 {[%emt 0:00:23]} (6... Nf6 $14) 7. Bb3 {[%emt 0:00:05]} d6 {[%emt 0:00:33]} 8. a4 $5 {[%emt 0:02:04][%mdl 4] White is better. An interesting side line.} Rb8 {[%emt 0:04:57]} 9. d4 {[%emt 0:00:34] [#]} Bb6 {[%emt 0:00:09]} 10. Be3 $146 {[%emt 0:25:02]} (10. axb5 axb5 11. Na3 Na5 12. Nxb5 Nxb3 13. Qxb3 Nf6 14. Re1 Bg4 15. Qd1 O-O 16. Qd3 {½-½ Cayford,R (2525)-Tomkovich,V (2505) W-ch15 corr9601 1996}) 10... Nf6 {[%emt 0:02:51]} 11. Nbd2 {[%emt 0:00:06]} O-O {[%emt 0:03:33]} 12. Re1 {[%emt 1:05:07]} Bg4 {[%emt 0:11:11]} 13. h3 {[%emt 0:00:00]} Bh5 {[%emt 0:04:30]} 14. g4 {[%emt 0:00:00]} Bg6 {[%emt 0:04:06] A sharp opening} 15. Bc2 {[%emt 0:00:00]} Qd7 {[%emt 0:05:49]} (15... exd4 $11 16. cxd4 Rfe8 (16... Bxe4 $2 17. Nxe4 Nxe4 18. axb5 $18) (16... Nxe4 17. Nxe4 Bxe4 18. Bxe4 $18)) 16. axb5 {[%emt 0:00:00]} axb5 {[%emt 0:00:08]} 17. Bd3 {[%emt 0:00:00]} (17. dxe5 $14 dxe5 18. Qe2) 17... exd4 $11 {[%emt 0:04:40]} 18. cxd4 {[%emt 0:00:00]} Nb4 $1 {[%emt 0:00:13]} 19. Bb1 {[%emt 0:00:00]} c5 {[%emt 0:07:24]} 20. d5 {[%emt 0:00:00]} Rfe8 {[%emt 0:01:00][%cal Rf6e4]} 21. Bg5 {[%emt 0:00:00]} h5 {[%emt 0:07:35]} (21... Bd8 $11) 22. Bxf6 $1 $14 {[%emt 0:00:00]} gxf6 {[%emt 0:00:49]} 23. Nh4 {[%emt 0:00:00]} hxg4 {[%emt 0:00:35] [#] and ...g3 would now be decisive} 24. Ra3 {[%emt 0:00:00]} (24. hxg4 c4 $11) (24. Qxg4 Qxg4+ 25. hxg4 c4 26. Nxg6 fxg6 $17) 24... Kg7 {[%emt 0:05:02]} (24... c4 $14) 25. Rg3 $18 {[%emt 0:00:00]} (25. hxg4 $6 c4 $14) 25... Rh8 {[%emt 0:00:37][%cal Be8h8,Bh8h7,Bh7g7][%mdl 32]} 26. Rxg4 {[%emt 0:00:00][%cal Oe4e5] aiming for e5!.} Kf8 $2 {[%emt 0:00:08]} (26... Rbg8) 27. Qf3 $1 {[%emt 0:00:00]} (27. Nxg6+ fxg6 28. Kg2 (28. Rxg6 Qxh3 29. Qf3 Qxf3 $17) 28... Qf7 $14) 27... Bh5 {[%emt 0:03:08]} (27... Bd8 $142 28. Nxg6+ fxg6) 28. Qxf6 {[%emt 0:00:00]} Rh7 {[%emt 0:00:01]} 29. Rg3 {[%emt 0:00:00]} (29. e5 $142 Bd8 30. Bxh7 (30. Qxd6+ Qxd6 31. exd6 Bxg4 $16) 30... Qxg4+ (30... Bxf6 $2 31. Rg8+ Ke7 32. exf6+ Kxf6 33. Ne4+ Ke5 34. Nxc5+ Kxd5 35. Nxd7 $18) 31. hxg4 Bxf6 32. exf6 Nxd5 33. gxh5 Nxf6 34. Bc2) 29... Re8 $2 {[%emt 0:03:18]} (29... Bd8 30. Qf4 Bxh4 31. Qxh4 Re8) 30. Qg5 {[%emt 0:00:00]} ({Less strong is} 30. Nf5 Nxd5 31. Qxd6+ (31. exd5 $2 Rxe1+ 32. Kg2 Bd8 $19) 31... Qxd6 32. Nxd6 Re5 $16) 30... Bg6 {[%emt 0:01:44]} 31. e5 {[%emt 0:00:00][%cal Be4e5,Be5e6][%mdl 32]} Bd8 {[%emt 0:01:41]} 32. Nxg6+ {[%emt 0:00:00]} fxg6 {[%emt 0:00:02]} 33. Qxg6 {[%emt 0:00:00]} Rg7 {[%emt 0:00:47]} 34. Qh6 {[%emt 0:00:00]} (34. Qxd6+ $2 {loses.} Qxd6 35. exd6 Rxe1+ 36. Kh2 Rxg3 (36... Nxd5 $2 37. Rf3+ Nf6 38. Bf5 $19) 37. Kxg3 Rd1 $19 (37... Nxd5 $2 38. Kf3 $19)) 34... Qf7 {[%emt 0:01:30]} 35. e6 {[%emt 0:00:00] Intending Re4 and mate.} Qg8 {[%emt 0:00:29]} 36. Ree3 {[%emt 0:00:00] Weighted Error Value: White=0.28 (precise) /Black=0.87  Mistake:       	White=2     	Black=7      Inaccurate:     	White=5     	Black=2      OK:         	White=4     	Black=10     Best:        	White=4     	Black=1      Strong:       	White=2     	Black=1} 1-0

[Event "EICC 2025"]
[Site "Eforie-Nord"]
[Date "2025.03.15"]
[Round "1.45"]
[White "Nastase, Robert-Paul"]
[Black "Huschenbeth, Niclas"]
[Result "0-1"]
[Annotator "TA"]
[ECO "B23"]
[WhiteElo "2273"]
[BlackElo "2589"]
[PlyCount "74"]
[EventDate "2025.03.14"]
[EventType "swiss"]
[EventCountry "ROU"]
[SourceTitle "playchess.com"]
[Source "ChessBase"]
[SourceQuality "1"]
[TimeControl "40/5400+30:1800+30"]

{[%evp 9,74,9,11,8,16,5,6,0,17,0,4,0,0,0,0,0,0,-36,-39,-51,-10,-187,-175,-185,-186,-160,-150,-180,-179,-443,-121,-113,-14,-119,-123,-120,-65,-202,-202,-183,-163,-172,-113,-103,-99,-95,-121,-87,-93,-112,-97,-151,-160,-152,-154,-346,-345,-335,-335,-344,-343,-344,-337,-400,-393,-369,-358]} 1. e4 {[%emt 0:00:12]} c5 {[%emt 0:00:04]} 2. Nc3 {[%emt 0:00:04]} d6 {[%emt 0:00:07]} 3. d4 {[%emt 0:00:03]} cxd4 {[%emt 0:00:13]} 4. Qxd4 {[%emt 0:00:03]} Nc6 {[%emt 0:00:25]} 5. Qd2 {[%emt 0:00:03]} g6 {[%emt 0:00:59]} 6. b3 {[%emt 0:00:03] B23: Closed Sicilian: Lines without g3.} Bh6 {[%emt 0:00:24]} 7. f4 {[%emt 0:00:04]} Nf6 {[%emt 0:00:54]} 8. Bb2 {[%emt 0:00:04] The position is equal.} O-O {[%emt 0:00:19]} 9. O-O-O {[%emt 0:00:02]} a5 {[%emt 0:00:32][%cal Oa5a4]} 10. a4 {[%emt 0:00:14]} Nb4 {[%emt 0:00:22][%cal Od6d5]} 11. Kb1 {[%emt 0:00:02]} Qb6 {[%emt 0:00:43][%cal Od6d5]} 12. Nf3 {[%emt 0:09:14]} Bg4 {[%emt 0:00:32]} 13. Be2 {[%emt 0:00:51]} Rac8 {[%emt 0:01:24][%cal Of6e4]} 14. h3 {[%emt 0:00:46]} Bd7 $146 {[%emt 0:00:30][%cal Of6e4]} (14... Nxe4 15. Nxe4 Rxc2 16. Qxc2 Nxc2 17. hxg4 Qxb3 18. Nfd2 Na3+ 19. Ka1 Nc2+ 20. Kb1 Na3+ 21. Ka1 {½-½ Gurel,E (2489)-Albornoz Cabrera,C (2586) Menorca op 2nd 2023 (9)}) 15. Nd4 $2 {[%emt 0:15:56]} (15. Rhe1 $11) 15... e5 $19 {[%emt 0:11:26][%cal Oh6f4]} 16. Ndb5 {[%emt 0:00:04]} d5 {[%emt 0:13:14]} 17. exd5 {[%emt 0:06:48]} (17. Nxd5 $2 Nfxd5 18. c3 (18. exd5 $2 Rxc2 19. Qxc2 Nxc2 $19) 18... Bxf4 $19) 17... Bxf4 {[%emt 0:00:54]} 18. Qe1 {[%emt 0:01:02]} Bf5 {[%emt 0:00:35]} 19. Na3 {[%emt 0:06:57] [#]} (19. Bd3 Bxd3 (19... Nbxd5 $2 {loses.} 20. Nxd5 Nxd5 21. Bxf5 $18) 20. cxd3 Nfxd5 21. Nxd5 Nxd5 22. g3) 19... Rxc3 $1 {[%emt 0:18:05][%mdl 512]} 20. Qxc3 $17 {[%emt 0:00:29]} Nbxd5 {[%emt 0:19:06]} (20... Nfxd5 $17 21. Rxd5 Nxd5) 21. Rxd5 {[%emt 0:03:14]} Nxd5 {[%emt 0:00:06]} 22. Qf3 {[%emt 0:00:20]} Qc5 {[%emt 0:15:23]} (22... Ne3 $17 23. g3 Qxb3 24. gxf4 Bxc2+ 25. Ka1 Rc8) 23. g3 {[%emt 0:03:22]} (23. Bc4 $15 e4 24. Qf1) 23... e4 $19 {[%emt 0:04:23]} 24. Qg2 {[%emt 0:00:23]} Bd2 {[%emt 0:02:08]} 25. g4 {[%emt 0:03:32]} Be6 {[%emt 0:01:01]} (25... Bc3 $19 {White must now prevent ...Bxb2.} 26. gxf5 Bxb2 27. Kxb2 Qd4+ 28. Kb1 (28. Kc1 $2 Qa1+ 29. Nb1 Nc3 $19) 28... Nc3+ 29. Kc1 Qe3+ 30. Kb2 Nxe2) 26. Nb5 $17 {[%emt 0:11:58]} Ne3 $36 {[%emt 0:04:16][%mdl 2048] Black is on the roll. Black has more active pieces.} 27. Qxe4 {[%emt 0:00:05][%cal Oh1h2]} Bd5 {[%emt 0:00:10] The board is on fire.} 28. Qd3 {[%emt 0:01:25]} Bxh1 {[%emt 0:00:06]} 29. Qxd2 {[%emt 0:00:22][%cal Ob2a3]} Be4 {[%emt 0:01:48][%cal Rc5c2]} 30. Bd3 {[%emt 0:00:04]} (30. Nd4 $142 Re8 31. Bb5) 30... Bxd3 {[%emt 0:00:32]} 31. Qxd3 {[%emt 0:00:05]} Nd5 {[%emt 0:00:49]} 32. Nd4 $2 {[%emt 0:05:20]} (32. Bd4 $17 Qe7 33. Qd2) 32... Re8 $19 {[%emt 0:00:29]} 33. Qd2 {[%emt 0:01:16] Against Re1+} Qb4 {[%emt 0:01:26]} 34. c3 {[%emt 0:01:28]} Qe7 {[%emt 0:00:37]} 35. Nc2 {[%emt 0:00:33]} Qe4 {[%emt 0:00:38]} 36. Ka1 {[%emt 0:01:13]} Nf4 {[%emt 0:01:58]} 37. c4 {[%emt 0:02:53]} Nd3 {[%emt 0:00:14] Weighted Error Value: White=0.46/Black=0.25 (precise)   Loses game:     	White=2     	---        Missed win:     	---       	Black=1      Mistake:       	White=4     	Black=3      Inaccurate:     	White=1     	---        OK:         	White=13    	Black=17     Best:        	White=3     	Black=6} (37... Nxh3 38. Qh6 Re5 (38... Qxg4 39. Qg7#) 39. Qxh3 $18) 0-1

[Event "EICC 2025"]
[Site "Eforie-Nord"]
[Date "2025.03.16"]
[Round "2.1"]
[White "Sebenik, Matej"]
[Black "Sarana, Alexey"]
[Result "0-1"]
[Annotator "TA"]
[ECO "E11"]
[WhiteElo "2492"]
[BlackElo "2689"]
[PlyCount "82"]
[EventDate "2025.03.14"]
[EventType "swiss"]
[EventCountry "ROU"]
[SourceTitle "playchess.com"]
[Source "ChessBase"]
[SourceQuality "1"]
[TimeControl "40/5400+30:1800+30"]

{[%evp 9,82,0,0,0,0,-5,17,-1,26,19,23,23,29,20,31,29,17,20,25,37,29,29,25,20,26,37,33,8,9,0,12,8,28,21,20,20,18,9,12,12,25,14,11,0,9,0,0,0,0,0,0,0,0,0,-8,-37,-38,-34,-26,-33,-25,-29,31,24,27,30,28,-363,-396,-412,-410,-364,-411,-444,-447]} 1. d4 {[%emt 0:00:08]} Nf6 {[%emt 0:00:06]} 2. c4 {[%emt 0:00:09]} e6 {[%emt 0:00:04]} 3. Nf3 {[%emt 0:00:04]} d5 {[%emt 0:00:06]} 4. g3 {[%emt 0:01:08]} Bb4+ {[%emt 0:00:07]} 5. Bd2 {[%emt 0:00:03]} Be7 {[%emt 0:00:11]} 6. Bg2 {[%emt 0:00:10] E11: Bogo-Indian.} Nbd7 {[%emt 0:00:34]} 7. Qc2 {[%emt 0:01:42]} c6 {[%emt 0:00:11]} 8. O-O {[%emt 0:00:57] The position is equal.} Ne4 {[%emt 0:00:14]} 9. Nc3 {[%emt 0:07:20]} Nxd2 {[%emt 0:01:05]} 10. Nxd2 {[%emt 0:00:04]} O-O {[%emt 0:00:22]} 11. Rfd1 {[%emt 0:10:49]} Rb8 {[%emt 0:02:43]} 12. a3 {[%emt 0:13:07]} a5 {[%emt 0:15:21]} 13. e3 {[%emt 0:13:07]} b5 {[%emt 0:06:54]} 14. cxb5 {[%emt 0:01:10]} cxb5 {[%emt 0:00:09]} 15. Bf1 {[%emt 0:00:38]} b4 {[%emt 0:01:39]} 16. axb4 $146 {[%emt 0:00:57]} ({Predecessor:} 16. Nb5 Bb7 17. a4 Rc8 18. Qb3 Nb6 19. Rdc1 Qd7 20. Qd1 Nc4 21. b3 Nd6 22. Rxc8 Rxc8 {1-0 Shoboev,D (2226)-Bocharov,D (2557) Khanty-Mansiysk Governor Cup 14th 2018 (1)}) 16... Bxb4 {[%emt 0:01:03]} 17. Nb3 {[%emt 0:02:43]} Nf6 {[%emt 0:05:32]} 18. Na2 {[%emt 0:03:05][%cal Bc3a2,Ba2c1,Bc1d3][%mdl 32]} Bd6 {[%emt 0:08:51]} 19. Nac1 {[%emt 0:05:26]} Ra8 {[%emt 0:08:23]} 20. Nd3 {[%emt 0:02:34] Counterplay Black} Qb6 {[%emt 0:01:40]} 21. Nbc5 {[%emt 0:02:53][%cal Ob2b4]} Bd7 {[%emt 0:02:13]} 22. Nxd7 {[%emt 0:05:58]} Nxd7 {[%emt 0:00:25]} 23. Qa4 {[%emt 0:00:03]} Nf6 {[%emt 0:00:46]} 24. Rdc1 {[%emt 0:00:14]} Rfb8 {[%emt 0:00:31]} 25. Rc6 {[%emt 0:12:33]} Qd8 {[%emt 0:00:42]} 26. Bg2 {[%emt 0:00:05]} g6 {[%emt 0:01:01]} 27. Qc2 {[%emt 0:02:16]} Kg7 {[%emt 0:00:37]} 28. Bf3 {[%emt 0:02:55] Opposite bishops and equal position} h5 {[%emt 0:04:12]} 29. h4 {[%emt 0:00:26]} Ng8 {[%emt 0:00:15]} 30. Bg2 {[%emt 0:03:38]} Ne7 {[%emt 0:01:01]} 31. Rc3 {[%emt 0:00:03]} Nf5 {[%emt 0:00:26]} 32. Bh3 {[%emt 0:07:47] [#]} (32. Qd1 {simplifies} a4 33. Rxa4 Rxa4 34. Qxa4 Ra8 35. Qd1) 32... Nxg3 $1 {[%emt 0:05:29]} 33. fxg3 {[%emt 0:00:04]} Bxg3 {[%emt 0:00:04]} 34. Qg2 {[%emt 0:00:02]} Qxh4 {[%emt 0:00:10]} 35. Rf1 {[%emt 0:00:02] Hoping for Rf3.} Bd6 {[%emt 0:02:22]} (35... Ra7 $11) 36. Rc6 $14 {[%emt 0:01:34]} Rb3 $1 {[%emt 0:04:15] The board is on fire.} 37. Rxd6 {[%emt 0:02:31]} Rxd3 {[%emt 0:00:01] [#]} 38. Rxf7+ $2 {[%emt 0:00:28][%mdl 8192] This costs White the game.} Kxf7 $19 {[%emt 0:00:01]} 39. Rd7+ {[%emt 0:00:14] [#]} Kf6 $1 {[%emt 0:05:39]} 40. Qf1+ {[%emt 0:00:44]} Kg5 {[%emt 0:00:07]} 41. Rf7 {[%emt 0:23:16] Threatening mate with Qf6+.} Qg3+ {[%emt 0:04:31] Weighted Error Value: White=0.17 (very precise) /Black=0.05 (flawless)   Loses game:     	White=1     	---        Mistake:       	---       	Black=1      Inaccurate:     	White=1     	Black=1      OK:         	White=14    	Black=16     Best:        	White=1     	Black=2      Strong:       	---       	Black=2} (41... Rxe3 $2 {too greedy.} 42. Qf6+ Kh6 43. Qxh4 $18) 0-1

[Event "EICC 2025"]
[Site "Eforie-Nord"]
[Date "2025.03.16"]
[Round "2.1"]
[White "Zhou, Yang-Fan"]
[Black "Kantor, Gergely"]
[Result "0-1"]
[Annotator "ChessBase"]
[ECO "C54"]
[WhiteElo "2425"]
[BlackElo "2563"]
[PlyCount "80"]
[EventDate "2025.03.14"]
[EventType "swiss"]
[EventCountry "ROU"]
[SourceTitle "playchess.com"]
[Source "ChessBase"]
[SourceQuality "1"]
[TimeControl "40/5400+30:1800+30"]

1. e4 {[%emt 0:00:02]} e5 {[%emt 0:01:25]} 2. Nf3 {[%emt 0:00:04]} Nc6 {[%emt 0:00:04]} 3. Bc4 {[%emt 0:00:06]} Nf6 {[%emt 0:00:03]} 4. d3 {[%emt 0:00:04]} Bc5 {[%emt 0:00:07]} 5. c3 {[%emt 0:00:05]} d6 {[%emt 0:01:01]} 6. O-O {[%emt 0:00:40]} a5 {[%emt 0:02:31]} 7. Re1 {[%emt 0:01:14]} O-O {[%emt 0:00:15]} 8. h3 {[%emt 0:00:59]} Ba7 {[%emt 0:00:21]} 9. Bb3 {[%emt 0:03:37]} h6 {[%emt 0:04:55]} 10. d4 {[%emt 0:01:51]} Re8 {[%emt 0:00:46]} 11. Bc2 {[%emt 0:00:42]} Bd7 {[%emt 0:02:59]} 12. a4 {[%emt 0:06:23]} exd4 {[%emt 0:01:34]} 13. cxd4 {[%emt 0:00:19]} Nb4 {[%emt 0:00:05]} 14. Nc3 {[%emt 0:00:04]} Nxc2 {[%emt 0:00:22]} 15. Qxc2 {[%emt 0:00:04]} c6 {[%emt 0:00:37]} 16. Bd2 {[%emt 0:01:00]} Rc8 {[%emt 0:05:31]} 17. Rac1 {[%emt 0:04:07]} Be6 {[%emt 0:05:15]} 18. Be3 {[%emt 0:01:54]} b5 {[%emt 0:11:00]} 19. Nd2 {[%emt 0:04:18]} b4 {[%emt 0:22:56]} 20. Ne2 {[%emt 0:00:41]} d5 {[%emt 0:02:42]} 21. e5 {[%emt 0:00:42]} c5 {[%emt 0:00:50]} 22. dxc5 {[%emt 0:24:18]} Nd7 {[%emt 0:00:19]} 23. Nb3 {[%emt 0:00:39]} Nxe5 {[%emt 0:00:42]} 24. Nf4 {[%emt 0:01:22]} Nc4 {[%emt 0:10:05]} 25. Rcd1 {[%emt 0:08:02]} Qd7 {[%emt 0:05:25]} 26. Nh5 {[%emt 0:20:01]} Bf5 {[%emt 0:08:22]} 27. Qc1 {[%emt 0:00:02]} Nxe3 {[%emt 0:05:45]} 28. Rxe3 {[%emt 0:00:11]} Rxe3 {[%emt 0:04:15]} 29. Qxe3 {[%emt 0:00:35]} Bg6 {[%emt 0:00:15]} 30. Qe5 {[%emt 0:12:51]} f6 {[%emt 0:00:47]} 31. Qxd5+ {[%emt 0:02:08]} Qxd5 {[%emt 0:00:04]} 32. Rxd5 {[%emt 0:00:04]} Bf7 {[%emt 0:00:14]} 33. Rd7 {[%emt 0:00:32]} Bb8 {[%emt 0:00:52]} 34. Nxf6+ {[%emt 0:04:37]} gxf6 {[%emt 0:00:06]} 35. Nxa5 {[%emt 0:00:01]} b3 {[%emt 0:01:52]} 36. Rb7 {[%emt 0:01:48]} Bd5 {[%emt 0:01:11]} 37. Rb5 {[%emt 0:00:42]} Re8 {[%emt 0:00:15]} 38. Kf1 {[%emt 0:00:52]} Bc7 {[%emt 0:00:47]} 39. g3 {[%emt 0:01:30]} Bf3 {[%emt 0:01:59]} 40. Nxb3 {[%emt 0:00:39]} Rd8 {[%emt 0:00:27]} 0-1